fUSD/lending_fUSD_20241223
["ID","MTS","AMOUNT","RATE_DAILY","PERIOD"]
[346464377,1734985867705,-632.63443927,0.00014246,2]
[346464378,1734985867714,-500.0,0.00014246,2]
[346464379,1734985867723,-589.03,0.00014246,2]
[346464380,1734985867733,-500.0,0.00014246,2]
[346464381,1734985867743,-1797.9,0.00014246,2]
[346464382,1734985867752,-500.0,0.00014246,2]
[346464383,1734985867762,-500.0,0.00014246,2]
[346464384,1734985867771,-2367.25,0.00014246,2]
[346464385,1734985867781,-500.0,0.00014246,2]
[346464386,1734985867791,-1636.79,0.00014246,2]
[346464387,1734985867800,-1955.68,0.00014246,2]
[346464388,1734985867810,-816.2,0.00014246,2]
[346464389,1734985867819,-500.0,0.00014246,2]
[346464390,1734985867829,-500.0,0.00014246,2]
[346464391,1734985867838,-1984.61,0.00014246,2]
[346464392,1734985867848,-1377.44,0.00014246,2]
[346464393,1734985867857,-500.0,0.00014246,2]
[346464394,1734985867867,-500.0,0.00014246,2]
[346464395,1734985867877,-500.0,0.00014246,2]
[346464396,1734985867886,-883.68,0.00014246,2]
[346464397,1734985867896,-500.0,0.00014246,2]
[346464398,1734985867905,-500.0,0.00014246,2]
[346464399,1734985867916,-500.0,0.00014246,2]
[346464400,1734985867931,-1299.3,0.00014246,2]
[346464401,1734985867940,-2383.46,0.00014246,2]
[346464402,1734985867950,-1084.61,0.00014246,2]
[346464403,1734985867961,-873.73,0.00014246,2]
[346464404,1734985867971,-500.0,0.00014246,2]
[346464405,1734985867981,-500.0,0.00014246,2]
[346464406,1734985867991,-305.48171729,0.00014246,2]
[346464407,1734985868004,-1037.13,0.00014246,2]
[346464408,1734985868014,-500.0,0.00014246,2]
[346464409,1734985868023,-976.37,0.00014246,2]
[346464410,1734985868033,-500.0,0.00014246,2]
[346464411,1734985868042,-500.0,0.00014246,2]
[346464412,1734985868052,-1118.89,0.00014246,2]
[346464413,1734985868061,-1040.4,0.00014246,2]
[346464414,1734985868071,-1676.56,0.00014246,2]
[346464415,1734985868080,-500.0,0.00014246,2]
[346464416,1734985868091,-500.0,0.00014246,2]
[346464417,1734985868101,-500.0,0.00014246,2]
[346464418,1734985868111,-500.0,0.00014246,2]
[346464419,1734985868120,-2349.52,0.00014246,2]
[346464420,1734985868130,-1681.72,0.00014246,2]
[346464421,1734985868139,-1231.67,0.00014246,2]
[346464422,1734985868149,-596.42,0.00014246,2]
[346464423,1734985868158,-500.0,0.00014246,2]
[346464424,1734985868169,-550.31583532,0.00014246,2]
[346464425,1734985868178,-557.54818246,0.00014246,2]
[346464426,1734985868187,-500.0,0.00014246,2]
[346464427,1734985868197,-2136.05,0.00014246,2]
[346464428,1734985868207,-536.88052585,0.00014246,2]
[346464429,1734985868216,-500.0,0.00014246,2]
[346464430,1734985868226,-878.77,0.00014246,2]
[346464431,1734985868235,-515.63,0.00014246,2]
[346464432,1734985868245,-1387.19,0.00014246,2]
[346464433,1734985868254,-500.0,0.00014246,2]
[346464434,1734985868263,-1277.14,0.00014246,2]
[346464435,1734985868273,-500.0,0.00014246,2]
[346464436,1734985868282,-500.0,0.00014246,2]
[346464437,1734985868291,-500.0,0.00014246,2]
[346464438,1734985868301,-942.01,0.00014246,2]
[346464439,1734985868311,-500.0,0.00014246,2]
[346464440,1734985868321,-2334.95,0.00014246,2]
[346464441,1734985868331,-205.50521608,0.00014246,2]
[346464442,1734985868340,-500.0,0.00014246,2]
[346464443,1734985868349,-500.0,0.00014246,2]
[346464444,1734985868359,-1037.6,0.00014246,2]
[346464445,1734985868369,-500.0,0.00014246,2]
[346464446,1734985868378,-1810.9,0.00014246,2]
[346464447,1734985868388,-500.0,0.00014246,2]
[346464448,1734985868397,-544.81,0.00014246,2]
[346464449,1734985868407,-500.0,0.00014246,2]
[346464450,1734985868419,-871.58,0.00014246,2]
[346464451,1734985868429,-1953.42,0.00014246,2]
[346464452,1734985868438,-500.0,0.00014246,2]
[346464453,1734985868448,-726.61,0.00014246,2]
[346464454,1734985868457,-1704.95,0.00014246,2]
[346464455,1734985868466,-500.0,0.00014246,2]
[346464456,1734985868476,-500.0,0.00014246,2]
[346464457,1734985868486,-1166.37,0.00014246,2]
[346464458,1734985868495,-500.0,0.00014246,2]
[346464459,1734985868505,-500.0,0.00014246,2]
[346464460,1734985868514,-1041.48,0.00014246,2]
[346464461,1734985868523,-718.3,0.00014246,2]
[346464462,1734985868533,-1034.48,0.00014246,2]
[346464463,1734985868542,-1117.21,0.00014246,2]
[346464464,1734985868551,-500.0,0.00014246,2]
[346464465,1734985868560,-500.0,0.00014246,2]
[346464466,1734985868570,-917.86,0.00014246,2]
[346464467,1734985868579,-500.0,0.00014246,2]
[346464468,1734985868588,-500.0,0.00014246,2]
[346464469,1734985868598,-500.0,0.00014246,2]
[346464470,1734985868607,-936.45,0.00014246,2]
[346464471,1734985868617,-500.0,0.00014246,2]
[346464472,1734985868626,-500.0,0.00014246,2]
[346464473,1734985868635,-1338.94,0.00014246,2]
[346464474,1734985868644,-625.437085,0.00014246,2]
[346464475,1734985868654,-718.45,0.00014246,2]
[346464476,1734985868663,-500.0,0.00014246,2]
[346464477,1734985868677,-1013.25,0.00014246,2]
[346464478,1734985868687,-500.0,0.00014246,2]
[346464479,1734985868696,-500.0,0.00014246,2]
[346464480,1734985868705,-500.0,0.00014246,2]
[346464481,1734985868714,-1310.97,0.00014246,2]
[346464482,1734985868723,-500.0,0.00014246,2]
[346464483,1734985868733,-500.0,0.00014246,2]
[346464484,1734985868742,-797.38,0.00014246,2]
[346464485,1734985868751,-500.0,0.00014246,2]
[346464486,1734985868760,-500.0,0.00014246,2]
[346464487,1734985868770,-500.0,0.00014246,2]
[346464488,1734985868779,-507.44119858,0.00014246,2]
[346464489,1734985868788,-500.0,0.00014246,2]
[346464490,1734985868797,-734.76,0.00014246,2]
[346464491,1734985868807,-500.0,0.00014246,2]
[346464492,1734985868816,-1542.48,0.00014246,2]
[346464493,1734985868826,-500.0,0.00014246,2]
[346464494,1734985868835,-1329.72,0.00014246,2]
[346464495,1734985868844,-500.0,0.00014246,2]
[346464496,1734985868853,-500.0,0.00014246,2]
[346464497,1734985868862,-831.36,0.00014246,2]
[346464498,1734985868871,-500.0,0.00014246,2]
[346464499,1734985868880,-500.0,0.00014246,2]
[346464500,1734985868889,-1274.05,0.00014246,2]
[346464501,1734985868899,-538.99,0.00014246,2]
[346464502,1734985868908,-669.59,0.00014246,2]
[346464503,1734985868920,-500.0,0.00014246,2]
[346464504,1734985868932,-500.0,0.00014246,2]
[346464505,1734985868940,-504.09,0.00014246,2]
[346464506,1734985868951,-500.0,0.00014246,2]
[346464507,1734985868960,-2346.91,0.00014246,2]
[346464508,1734985868970,-500.0,0.00014246,2]
[346464509,1734985868979,-500.0,0.00014246,2]
[346464510,1734985868989,-1552.36,0.00014246,2]
[346464511,1734985868999,-500.0,0.00014246,2]
[346464512,1734985869009,-511.74,0.00014246,2]
[346464513,1734985869018,-500.0,0.00014246,2]
[346464514,1734985869027,-500.0,0.00014246,2]
[346464515,1734985869036,-573.82642136,0.00014246,2]
[346464516,1734985869044,-500.0,0.00014246,2]
[346464517,1734985869054,-518.25,0.00014246,2]
[346464518,1734985869064,-500.0,0.00014246,2]
[346464519,1734985869073,-500.0,0.00014246,2]
[346464520,1734985869082,-1317.58,0.00014246,2]
[346464521,1734985869091,-500.0,0.00014246,2]
[346464522,1734985869100,-500.0,0.00014246,2]
[346464523,1734985869109,-500.0,0.00014246,2]
[346464524,1734985869118,-1186.04,0.00014246,2]
[346464525,1734985869126,-500.0,0.00014246,2]
[346464526,1734985869135,-500.0,0.00014246,2]
[346464527,1734985869143,-500.0,0.00014246,2]
[346464528,1734985869152,-318.2767202,0.00014246,2]
[346464529,1734985869161,-1380.25,0.00014246,2]
[346464530,1734985869172,-534.95,0.00014246,2]
[346464531,1734985869182,-1680.71,0.00014246,2]
[346464532,1734985869192,-500.0,0.00014246,2]
[346464533,1734985869201,-500.0,0.00014246,2]
[346464534,1734985869211,-500.0,0.00014246,2]
[346464535,1734985869220,-500.0,0.00014246,2]
[346464536,1734985869230,-500.0,0.00014246,2]
[346464537,1734985869239,-2218.43,0.00014246,2]
[346464538,1734985869248,-500.0,0.00014246,2]
[346464539,1734985869258,-500.0,0.00014246,2]
[346464540,1734985869267,-500.0,0.00014246,2]
[346464541,1734985869277,-825.1,0.00014246,2]
[346464542,1734985869286,-500.0,0.00014246,2]
[346464543,1734985869295,-1441.48,0.00014246,2]
[346464544,1734985869304,-711.38,0.00014246,2]
[346464545,1734985869313,-2489.45,0.00014246,2]
[346464546,1734985869323,-500.0,0.00014246,2]
[346464547,1734985869332,-1072.76,0.00014246,2]
[346464548,1734985869342,-1330.49,0.00014246,2]
[346464549,1734985869351,-1067.18,0.00014246,2]
[346464550,1734985869360,-500.0,0.00014246,2]
[346464551,1734985869369,-500.0,0.00014246,2]
[346464552,1734985869378,-500.0,0.00014246,2]
[346464553,1734985869388,-500.0,0.00014246,2]
[346464554,1734985869398,-2293.86,0.00014246,2]
[346464555,1734985869407,-1330.05,0.00014246,2]
[346464556,1734985869418,-960.34,0.00014246,2]
[346464557,1734985869428,-726.06,0.00014246,2]
[346464558,1734985869437,-1198.05,0.00014246,2]
[346464559,1734985869447,-500.0,0.00014246,2]
[346464560,1734985869456,-676.2,0.00014246,2]
[346464561,1734985869466,-976.17,0.00014246,2]
[346464562,1734985869476,-500.0,0.00014246,2]
[346464563,1734985869486,-999.64,0.00014246,2]
[346464564,1734985869496,-572.9,0.00014246,2]
[346464565,1734985869505,-500.0,0.00014246,2]
[346464566,1734985869514,-2358.02,0.00014246,2]
[346464567,1734985869524,-1767.73,0.00014246,2]
[346464568,1734985869533,-1610.47,0.00014246,2]
[346464569,1734985869542,-1406.6,0.00014246,2]
[346464570,1734985869551,-1381.12,0.00014246,2]
[346464571,1734985869560,-500.0,0.00014246,2]
[346464572,1734985869570,-500.0,0.00014246,2]
[346464573,1734985869579,-2739.52,0.00014246,2]
[346464574,1734985869588,-500.0,0.00014246,2]
[346464575,1734985869598,-500.0,0.00014246,2]
[346464576,1734985869607,-500.0,0.00014246,2]
[346464577,1734985869617,-1819.83,0.00014246,2]
[346464578,1734985869630,-500.0,0.00014246,2]
[346464579,1734985869639,-500.0,0.00014246,2]
[346464580,1734985869649,-670.54,0.00014246,2]
[346464581,1734985869658,-500.0,0.00014246,2]
[346464582,1734985869668,-500.0,0.00014246,2]
[346464583,1734985869679,-500.0,0.00014246,2]
[346464584,1734985869689,-1116.26,0.00014246,2]
[346464585,1734985869699,-500.0,0.00014246,2]
[346464586,1734985869708,-500.0,0.00014246,2]
[346464587,1734985869717,-500.0,0.00014246,2]
[346464588,1734985869726,-1104.4,0.00014246,2]
[346464589,1734985869735,-500.0,0.00014246,2]
[346464590,1734985869744,-500.0,0.00014246,2]
[346464591,1734985869752,-1127.54,0.00014246,2]
[346464592,1734985869762,-343.26440076,0.00014246,2]
[346464593,1734985869771,-500.0,0.00014246,2]
[346464594,1734985869780,-500.0,0.00014246,2]
[346464595,1734985869789,-713.56,0.00014246,2]
[346464596,1734985869797,-718.79,0.00014246,2]
[346464597,1734985869807,-500.0,0.00014246,2]
[346464598,1734985869816,-1324.85,0.00014246,2]
[346464599,1734985869825,-11616.38,0.00014246,2]
[346464600,1734985869834,-500.0,0.00014246,2]
[346464601,1734985869843,-546.66,0.00014246,2]
[346464602,1734985869852,-889.67,0.00014246,2]
[346464603,1734985869862,-552.31,0.00014246,2]
[346464604,1734985869871,-2585.74,0.00014246,2]
[346464605,1734985869880,-500.0,0.00014246,2]
[346464606,1734985869889,-500.0,0.00014246,2]
[346464607,1734985869898,-1564.45,0.00014246,2]
[346464608,1734985869907,-2132.91,0.00014246,2]
[346464609,1734985869919,-1910.4,0.00014246,2]
[346464610,1734985869931,-500.0,0.00014246,2]
[346464611,1734985869940,-500.0,0.00014246,2]
[346464612,1734985869949,-500.0,0.00014246,2]
[346464613,1734985869958,-500.0,0.00014246,2]
[346464614,1734985869968,-500.0,0.00014246,2]
[346464615,1734985869977,-500.0,0.00014246,2]
[346464616,1734985869986,-676.74,0.00014246,2]
[346464617,1734985869995,-1052.83,0.00014246,2]
[346464618,1734985870005,-1540.54,0.00014246,2]
[346464619,1734985870014,-3961.8,0.00014246,2]
[346464620,1734985870023,-500.0,0.00014246,2]
[346464621,1734985870032,-500.0,0.00014246,2]
[346464622,1734985870041,-500.0,0.00014246,2]
[346464623,1734985870050,-906.99,0.00014246,2]
[346464624,1734985870059,-1220.26,0.00014246,2]
[346464625,1734985870068,-500.0,0.00014246,2]
[346464626,1734985870077,-757.77,0.00014246,2]
[346464627,1734985870087,-608.2,0.00014246,2]
[346464628,1734985870096,-500.0,0.00014246,2]
[346464629,1734985870105,-730.93,0.00014246,2]
[346464630,1734985870115,-642.48,0.00014246,2]
[346464631,1734985870124,-500.0,0.00014246,2]
[346464632,1734985870133,-1880.32,0.00014246,2]
[346464633,1734985870143,-500.0,0.00014246,2]
[346464634,1734985870152,-500.0,0.00014246,2]
[346464635,1734985870161,-500.0,0.00014246,2]
[346464636,1734985870170,-593.05,0.00014246,2]
[346464637,1734985870179,-1323.67,0.00014246,2]
[346464638,1734985870189,-731.37,0.00014246,2]
[346464639,1734985870198,-500.0,0.00014246,2]
[346464640,1734985870207,-1229.23,0.00014246,2]
[346464641,1734985870216,-1128.51,0.00014246,2]
[346464642,1734985870227,-500.0,0.00014246,2]
[346464643,1734985870236,-1556.25,0.00014246,2]
[346464644,1734985870245,-1821.81,0.00014246,2]
[346464645,1734985870254,-423.25236724,0.00014246,2]
[346464646,1734985870263,-193.98700376,0.00014246,2]
[346464647,1734985870272,-500.0,0.00014246,2]
[346464648,1734985870282,-500.0,0.00014246,2]
[346464649,1734985870290,-500.0,0.00014246,2]
[346464650,1734985870299,-2511.25,0.00014246,2]
[346464651,1734985870308,-500.0,0.00014246,2]
[346464652,1734985870318,-500.0,0.00014246,2]
[346464653,1734985870327,-500.0,0.00014246,2]
[346464654,1734985870336,-500.0,0.00014246,2]
[346464655,1734985870345,-500.0,0.00014246,2]
[346464656,1734985870354,-500.0,0.00014246,2]
[346464657,1734985870362,-1286.37,0.00014246,2]
[346464658,1734985870371,-4562.33,0.00014246,2]
[346464659,1734985870381,-1062.83,0.00014246,2]
[346464660,1734985870390,-1153.14,0.00014246,2]
[346464661,1734985870399,-641.53,0.00014246,2]
[346464662,1734985870408,-500.0,0.00014246,2]
[346464663,1734985870417,-2535.38,0.00014246,2]
[346464664,1734985870427,-500.0,0.00014246,2]
[346464665,1734985870436,-559.44,0.00014246,2]
[346464666,1734985870445,-2844.22,0.00014246,2]
[346464667,1734985870454,-500.0,0.00014246,2]
[346464668,1734985870463,-1175.89,0.00014246,2]
[346464669,1734985870472,-659.94,0.00014246,2]
[346464670,1734985870481,-500.0,0.00014246,2]
[346464671,1734985870490,-1425.63,0.00014246,2]
[346464672,1734985870499,-1269.21,0.00014246,2]
[346464673,1734985870509,-3167.53,0.00014246,2]
[346464674,1734985870518,-500.0,0.00014246,2]
[346464675,1734985870527,-3442.76,0.00014246,2]
[346464676,1734985870536,-500.0,0.00014246,2]
[346464677,1734985870545,-1385.92,0.00014246,2]
[346464678,1734985870554,-3727.64,0.00014246,2]
[346464679,1734985870563,-500.0,0.00014246,2]
[346464680,1734985870572,-500.0,0.00014246,2]
[346464681,1734985870582,-1459.47,0.00014246,2]
[346464682,1734985870590,-555.79,0.00014246,2]
[346464683,1734985870599,-533.73,0.00014246,2]
[346464684,1734985870608,-997.76,0.00014246,2]
[346464685,1734985870617,-500.0,0.00014246,2]
[346464686,1734985870627,-8524.68,0.00014246,2]
[346464687,1734985870637,-1272.23,0.00014246,2]
[346464688,1734985870646,-2285.32,0.00014246,2]
[346464689,1734985870655,-981.91,0.00014246,2]
[346464690,1734985870665,-2978.93,0.00014246,2]
[346464691,1734985870678,-500.0,0.00014246,2]
[346464692,1734985870687,-9546.61,0.00014246,2]
[346464693,1734985870697,-2228.43,0.00014246,2]
[346464694,1734985870707,-2084.77,0.00014246,2]
[346464695,1734985870716,-1275.35,0.00014246,2]
[346464696,1734985870726,-701.29,0.00014246,2]
[346464697,1734985870735,-500.0,0.00014246,2]
[346464698,1734985870745,-500.0,0.00014246,2]
[346464699,1734985870754,-8504.12,0.00014246,2]
[346464700,1734985870763,-2631.63,0.00014246,2]
[346464701,1734985870773,-5876.43,0.00014246,2]
[346464702,1734985870782,-500.0,0.00014246,2]
[346464703,1734985870792,-579.61608306,0.00014246,2]
[346464704,1734985870802,-714.851638,0.00014246,2]
[346464705,1734985870812,-1269.09,0.00014246,2]
[346464706,1734985870821,-500.0,0.00014246,2]
[346464707,1734985870831,-500.0,0.00014246,2]
[346464708,1734985870841,-1403.77,0.00014246,2]
[346464709,1734985870850,-6999.05,0.00014246,2]
[346464710,1734985870860,-896.477441,0.00014246,2]
[346464711,1734985870869,-567.05,0.00014246,2]
[346464712,1734985870879,-500.0,0.00014246,2]
[346464713,1734985870888,-500.0,0.00014246,2]
[346464714,1734985870898,-978.25,0.00014246,2]
[346464715,1734985870908,-878.42,0.00014246,2]
[346464716,1734985870920,-810.98,0.00014246,2]
[346464717,1734985870930,-500.0,0.00014246,2]
[346464718,1734985870940,-500.0,0.00014246,2]
[346464719,1734985870949,-4971.32,0.00014246,2]
[346464720,1734985870959,-15609.61,0.00014246,2]
[346464721,1734985870968,-2082.07,0.00014246,2]
[346464722,1734985870978,-1810.82,0.00014246,2]
[346464723,1734985870987,-500.0,0.00014246,2]
[346464724,1734985870997,-500.0,0.00014246,2]
[346464725,1734985871007,-544.09,0.00014246,2]
[346464726,1734985871017,-618.60031528,0.00014246,2]
[346464727,1734985871027,-500.0,0.00014246,2]
[346464728,1734985871036,-2194.12,0.00014246,2]
[346464729,1734985871045,-21485.8,0.00014246,2]
[346464730,1734985871055,-537.09,0.00014246,2]
[346464731,1734985871064,-1307.78,0.00014246,2]
[346464732,1734985871073,-608.254172,0.00014246,2]
[346464733,1734985871083,-500.0,0.00014246,2]
[346464734,1734985871092,-648.7,0.00014246,2]
[346464735,1734985871102,-500.0,0.00014246,2]
[346464736,1734985871111,-830.494148,0.00014246,2]
[346464737,1734985871121,-500.0,0.00014246,2]
[346464738,1734985871130,-617.33694343,0.00014246,2]
[346464739,1734985871139,-500.0,0.00014246,2]
[346464740,1734985871149,-792.62,0.00014246,2]
[346464741,1734985871158,-500.0,0.00014246,2]
[346464742,1734985871168,-500.0,0.00014246,2]
[346464743,1734985871179,-695.34,0.00014246,2]
[346464744,1734985871189,-2306.63,0.00014246,2]
[346464745,1734985871199,-500.0,0.00014246,2]
[346464746,1734985871208,-1338.41,0.00014246,2]
[346464747,1734985871218,-1110.41,0.00014246,2]
[346464748,1734985871227,-2259.15,0.00014246,2]
[346464749,1734985871237,-500.0,0.00014246,2]
[346464750,1734985871246,-2704.02,0.00014246,2]
[346464751,1734985871256,-500.0,0.00014246,2]
[346464752,1734985871265,-8082.49,0.00014246,2]
[346464753,1734985871276,-500.0,0.00014246,2]
[346464754,1734985871286,-1130.4,0.00014246,2]
[346464755,1734985871296,-500.0,0.00014246,2]
[346464756,1734985871306,-4959.77,0.00014246,2]
[346464757,1734985871316,-500.0,0.00014246,2]
[346464758,1734985871326,-736.657144,0.00014246,2]
[346464759,1734985871336,-505.532594,0.00014246,2]
[346464760,1734985871346,-957.86,0.00014246,2]
[346464761,1734985871356,-1409.87,0.00014246,2]
[346464762,1734985871366,-1185.79,0.00014246,2]
[346464763,1734985871375,-500.0,0.00014246,2]
[346464764,1734985871385,-5418.44,0.00014246,2]
[346464765,1734985871395,-909.88,0.00014246,2]
[346464766,1734985871405,-500.0,0.00014246,2]
[346464767,1734985871415,-500.0,0.00014246,2]
[346464768,1734985871426,-1045.5,0.00014246,2]
[346464769,1734985871435,-4556.54,0.00014246,2]
[346464770,1734985871445,-500.0,0.00014246,2]
[346464771,1734985871455,-881.96,0.00014246,2]
[346464772,1734985871465,-500.0,0.00014246,2]
[346464773,1734985871475,-500.0,0.00014246,2]
[346464774,1734985871485,-500.0,0.00014246,2]
[346464775,1734985871494,-500.0,0.00014246,2]
[346464776,1734985871504,-500.0,0.00014246,2]
[346464777,1734985871513,-25800.67,0.00014246,2]
[346464778,1734985871523,-1968.17,0.00014246,2]
[346464779,1734985871532,-500.0,0.00014246,2]
[346464780,1734985871541,-500.0,0.00014246,2]
[346464781,1734985871551,-687.21,0.00014246,2]
[346464782,1734985871560,-500.0,0.00014246,2]
[346464783,1734985871570,-3288.38,0.00014246,2]
[346464784,1734985871580,-500.0,0.00014246,2]
[346464785,1734985871590,-416.862212,0.00014246,2]
[346464786,1734985871599,-1811.4,0.00014246,2]
[346464787,1734985871609,-500.0,0.00014246,2]
[346464788,1734985871619,-1397.62,0.00014246,2]
[346464789,1734985871628,-500.0,0.00014246,2]
[346464790,1734985871638,-1421.74,0.00014246,2]
[346464791,1734985871647,-638.509271,0.00014246,2]
[346464792,1734985871657,-1226.06,0.00014246,2]
[346464793,1734985871666,-500.0,0.00014246,2]
[346464794,1734985871678,-2054.5,0.00014246,2]
[346464795,1734985871687,-500.0,0.00014246,2]
[346464796,1734985871697,-1202.02,0.00014246,2]
[346464797,1734985871706,-500.0,0.00014246,2]
[346464798,1734985871716,-500.0,0.00014246,2]
[346464799,1734985871726,-857.55,0.00014246,2]
[346464800,1734985871736,-997.04,0.00014246,2]
[346464801,1734985871746,-500.0,0.00014246,2]
[346464802,1734985871756,-4568.68,0.00014246,2]
[346464803,1734985871765,-6837.63,0.00014246,2]
[346464804,1734985871775,-1006.94,0.00014246,2]
[346464805,1734985871785,-500.0,0.00014246,2]
[346464806,1734985871794,-3003.94,0.00014246,2]
[346464807,1734985871803,-3832.76,0.00014246,2]
[346464808,1734985871813,-500.0,0.00014246,2]
[346464809,1734985871823,-500.0,0.00014246,2]
[346464810,1734985871832,-500.0,0.00014246,2]
[346464811,1734985871842,-1063.28,0.00014246,2]
[346464812,1734985871852,-500.0,0.00014246,2]
[346464813,1734985871861,-500.0,0.00014246,2]
[346464814,1734985871871,-500.0,0.00014246,2]
[346464815,1734985871880,-2507.56,0.00014246,2]
[346464816,1734985871890,-8648.19,0.00014246,2]
[346464817,1734985871899,-960.03,0.00014246,2]
[346464818,1734985871909,-500.0,0.00014246,2]
[346464819,1734985871924,-5405.85,0.00014246,2]
[346464820,1734985871934,-1187.23,0.00014246,2]
[346464821,1734985871943,-500.0,0.00014246,2]
[346464822,1734985871953,-2940.51,0.00014246,2]
[346464823,1734985871963,-1048.41,0.00014246,2]
[346464824,1734985871973,-1068.6,0.00014246,2]
[346464825,1734985871982,-840.39,0.00014246,2]
[346464826,1734985871992,-1993.74,0.00014246,2]
[346464827,1734985872003,-3561.12,0.00014246,2]
[346464828,1734985872014,-546.61,0.00014246,2]
[346464829,1734985872024,-500.0,0.00014246,2]
[346464830,1734985872034,-500.0,0.00014246,2]
[346464831,1734985872044,-3274.29,0.00014246,2]
[346464832,1734985872054,-1338.38,0.00014246,2]
[346464833,1734985872063,-783.78,0.00014246,2]
[346464834,1734985872073,-350.60350172,0.00014246,2]
[346464835,1734985872083,-500.0,0.00014246,2]
[346464836,1734985872093,-6361.67,0.00014246,2]
[346464837,1734985872103,-2499.95,0.00014246,2]
[346464838,1734985872113,-500.0,0.00014246,2]
[346464839,1734985872123,-500.0,0.00014246,2]
[346464840,1734985872132,-500.0,0.00014246,2]
[346464841,1734985872142,-1272.9,0.00014246,2]
[346464842,1734985872151,-584.79,0.00014246,2]
[346464843,1734985872161,-1264.02,0.00014246,2]
[346464844,1734985872173,-602.61,0.00014246,2]
[346464845,1734985872182,-2583.28,0.00014246,2]
[346464846,1734985872192,-3548.89,0.00014246,2]
[346464847,1734985872201,-20926.66,0.00014246,2]
[346464848,1734985872211,-1616.84,0.00014246,2]
[346464849,1734985872220,-345.39155,0.00014246,2]
[346464850,1734985872230,-5036.21,0.00014246,2]
[346464851,1734985872239,-500.0,0.00014246,2]
[346464852,1734985872248,-500.0,0.00014246,2]
[346464853,1734985872258,-2477.09,0.00014246,2]
[346464854,1734985872267,-1308.35,0.00014246,2]
[346464855,1734985872277,-3947.04,0.00014246,2]
[346464856,1734985872288,-500.0,0.00014246,2]
[346464857,1734985872297,-500.0,0.00014246,2]
[346464858,1734985872307,-1083.41,0.00014246,2]
[346464859,1734985872317,-1480.03,0.00014246,2]
[346464860,1734985872326,-2255.81,0.00014246,2]
[346464861,1734985872336,-2607.12,0.00014246,2]
[346464862,1734985872345,-5040.82,0.00014246,2]
[346464863,1734985872354,-543.495431,0.00014246,2]
[346464864,1734985872364,-500.0,0.00014246,2]
[346464865,1734985872374,-1247.57,0.00014246,2]
[346464866,1734985872383,-500.0,0.00014246,2]
[346464867,1734985872393,-630.85,0.00014246,2]
[346464868,1734985872402,-500.0,0.00014246,2]
[346464869,1734985872412,-500.0,0.00014246,2]
[346464870,1734985872422,-2068.91,0.00014246,2]
[346464871,1734985872431,-1429.01,0.00014246,2]
[346464872,1734985872440,-1226.76,0.00014246,2]
[346464873,1734985872450,-2452.75,0.00014246,2]
[346464874,1734985872460,-1241.01,0.00014246,2]
[346464875,1734985872469,-506.4,0.00014246,2]
[346464876,1734985872478,-554.46,0.00014246,2]